[Event "Late-Titled-Tuesday-Blitz-October-10-2023"]
[Site "Chess.com"]
[Date "2023.10.10"]
[Round "2"]
[White "sergeikim"]
[Black "Witaliss"]
[Result "0-1"]
[WhiteElo "2591"]
[BlackElo "2411"]
[TimeControl "180+1"]
[EndTime "14:16:56 PDT"]
[Termination "Witaliss won by resignation"]

1. d4 {[%clk 0:03:00.9]} 1... Nf6 {[%clk 0:02:59.2]} 2. c4 {[%clk 0:03:00.9]}
2... c6 {[%clk 0:02:59.1]} 3. Nf3 {[%clk 0:02:59.9]} 3... d5 {[%clk 0:02:59.1]}
4. Qc2 {[%clk 0:03:00.1]} 4... g6 {[%clk 0:02:58.1]} 5. e3 {[%clk 0:03:00]} 5...
Bg7 {[%clk 0:02:58.1]} 6. Bd3 {[%clk 0:02:59.9]} 6... O-O {[%clk 0:02:57.2]} 7.
O-O {[%clk 0:02:59.2]} 7... c5 {[%clk 0:02:53]} 8. dxc5 {[%clk 0:02:56.5]} 8...
Na6 {[%clk 0:02:51.5]} 9. a3 {[%clk 0:02:56]} 9... Nxc5 {[%clk 0:02:50.9]} 10.
Nc3 {[%clk 0:02:44.4]} 10... Nxd3 {[%clk 0:02:47.9]} 11. Qxd3 {[%clk 0:02:44.2]}
11... dxc4 {[%clk 0:02:48.2]} 12. Qxc4 {[%clk 0:02:44.3]} 12... Qb6 {[%clk
0:02:42.8]} 13. Qh4 {[%clk 0:02:34.9]} 13... Be6 {[%clk 0:02:27]} 14. e4 {[%clk
0:02:34.5]} 14... Rfd8 {[%clk 0:02:22]} 15. e5 {[%clk 0:02:29.9]} 15... Nd5
{[%clk 0:02:19.2]} 16. Ng5 {[%clk 0:02:29]} 16... h6 {[%clk 0:02:13.6]} 17. Nxe6
{[%clk 0:02:28.4]} 17... Qxe6 {[%clk 0:02:13.6]} 18. Nxd5 {[%clk 0:02:26.4]}
18... Rxd5 {[%clk 0:02:12.1]} 19. f4 {[%clk 0:02:25.2]} 19... Rad8 {[%clk
0:02:04.8]} 20. Be3 {[%clk 0:02:24.1]} 20... a6 {[%clk 0:02:00.9]} 21. h3 {[%clk
0:02:03.7]} 21... Rd3 {[%clk 0:01:55]} 22. Rf3 {[%clk 0:02:03.1]} 22... R8d7
{[%clk 0:01:46.9]} 23. Raf1 {[%clk 0:02:01.4]} 23... Qf5 {[%clk 0:01:42.1]} 24.
Bc5 {[%clk 0:01:43.6]} 24... Rxf3 {[%clk 0:01:36.6]} 25. Rxf3 {[%clk 0:01:43.5]}
25... g5 {[%clk 0:01:32.4]} 26. Qh5 {[%clk 0:01:36]} 26... Qb1+ {[%clk
0:01:16.9]} 27. Kh2 {[%clk 0:01:35.5]} 27... gxf4 {[%clk 0:01:16.8]} 28. e6
{[%clk 0:01:26.2]} 28... Rc7 {[%clk 0:01:15.7]} 29. Qxf7+ {[%clk 0:01:22.6]}
29... Kh8 {[%clk 0:01:11.1]} 30. Bxe7 {[%clk 0:01:18.2]} 30... Rc1 {[%clk
0:01:05]} 31. Rxf4 {[%clk 0:01:12.6]} 31... Rh1+ {[%clk 0:01:04.6]} 32. Kg3
{[%clk 0:01:12.8]} 32... Qe1+ {[%clk 0:01:04.6]} 33. Kg4 {[%clk 0:01:11.4]}
33... Qe2+ {[%clk 0:01:02.2]} 34. Kf5 {[%clk 0:01:00.9]} 34... Qxg2 {[%clk
0:00:57.8]} 35. Bf6 {[%clk 0:00:50.5]} 35... Qxh3+ {[%clk 0:00:54.5]} 36. Ke5
{[%clk 0:00:46.5]} 36... Qe3+ {[%clk 0:00:48.1]} 37. Kf5 {[%clk 0:00:44.1]}
37... Qh3+ {[%clk 0:00:46.7]} 38. Ke5 {[%clk 0:00:44.2]} 38... Qe3+ {[%clk
0:00:42.9]} 39. Kf5 {[%clk 0:00:44]} 39... Qc5+ {[%clk 0:00:35.9]} 40. Kg4
{[%clk 0:00:38.2]} 40... Rg1+ {[%clk 0:00:34.2]} 41. Kh3 {[%clk 0:00:33.5]}
41... Qe3+ {[%clk 0:00:30.3]} 0-1

[Event "Late-Titled-Tuesday-Blitz-October-10-2023"]
[Site "Chess.com"]
[Date "2023.10.10"]
[Round "2"]
[White "Walter_White_Poland"]
[Black "Byniolus"]
[Result "0-1"]
[WhiteElo "2325"]
[BlackElo "2709"]
[TimeControl "180+1"]
[EndTime "14:16:58 PDT"]
[Termination "Byniolus won by resignation"]

1. e4 {[%clk 0:03:00.9]} 1... d6 {[%clk 0:03:00.2]} 2. d4 {[%clk 0:03:00.7]}
2... Nf6 {[%clk 0:03:00.9]} 3. Nc3 {[%clk 0:03:00.8]} 3... c6 {[%clk 0:03:01.5]}
4. a4 {[%clk 0:02:59.9]} 4... a5 {[%clk 0:03:01.3]} 5. h3 {[%clk 0:02:59.4]}
5... e5 {[%clk 0:02:57.4]} 6. dxe5 {[%clk 0:02:58.8]} 6... dxe5 {[%clk
0:02:58.3]} 7. Qxd8+ {[%clk 0:02:58.9]} 7... Kxd8 {[%clk 0:02:59.2]} 8. Bc4
{[%clk 0:02:58.9]} 8... Be6 {[%clk 0:02:56.9]} 9. Bxe6 {[%clk 0:02:58]} 9...
fxe6 {[%clk 0:02:57.8]} 10. Be3 {[%clk 0:02:57.6]} 10... Bb4 {[%clk 0:02:56.6]}
11. Ne2 {[%clk 0:02:56.6]} 11... Nxe4 {[%clk 0:02:54.1]} 12. O-O-O+ {[%clk
0:02:55.3]} 12... Nd6 {[%clk 0:02:52.7]} 13. Na2 {[%clk 0:02:47.8]} 13... Kc7
{[%clk 0:02:43.7]} 14. c3 {[%clk 0:02:47.2]} 14... Na6 {[%clk 0:02:37.1]} 15.
cxb4 {[%clk 0:02:46.1]} 15... axb4 {[%clk 0:02:38]} 16. b3 {[%clk 0:02:45]}
16... c5 {[%clk 0:02:24.3]} 17. g4 {[%clk 0:02:44.5]} 17... Rhf8 {[%clk
0:02:19.7]} 18. Kb1 {[%clk 0:02:43.1]} 18... Kc6 {[%clk 0:02:15.5]} 19. Ng3
{[%clk 0:02:41.8]} 19... b5 {[%clk 0:02:13.1]} 20. Rxd6+ {[%clk 0:02:32]} 20...
Kxd6 {[%clk 0:02:12.6]} 21. axb5 {[%clk 0:02:32.2]} 21... Nc7 {[%clk 0:02:10.2]}
22. Rd1+ {[%clk 0:02:31.9]} 22... Nd5 {[%clk 0:02:07.9]} 23. Ne4+ {[%clk
0:02:30.8]} 23... Kc7 {[%clk 0:02:06.7]} 24. Bxc5 {[%clk 0:02:27.5]} 24... Rf3
{[%clk 0:02:03.1]} 25. Bd6+ {[%clk 0:02:21.8]} 25... Kb6 {[%clk 0:02:01.8]} 26.
Bc5+ {[%clk 0:01:43.4]} 26... Kxb5 {[%clk 0:01:57.5]} 27. Be3 {[%clk 0:01:42.5]}
27... Rxh3 {[%clk 0:01:42.2]} 28. Nd6+ {[%clk 0:01:39.8]} 28... Kc6 {[%clk
0:01:38.5]} 29. Nc4 {[%clk 0:01:39.6]} 29... e4 {[%clk 0:01:22.2]} 30. Rd4
{[%clk 0:01:31.7]} 30... g6 {[%clk 0:01:02.2]} 31. Rxe4 {[%clk 0:01:28.5]} 31...
Rh1+ {[%clk 0:01:02.2]} 32. Bc1 {[%clk 0:01:20.8]} 32... Rxa2 {[%clk 0:01:02.4]}
33. Rxe6+ {[%clk 0:01:20.3]} 33... Kc5 {[%clk 0:01:01.8]} 34. Kxa2 {[%clk
0:01:18.5]} 34... Rxc1 {[%clk 0:01:01.7]} 35. Kb2 {[%clk 0:01:08.9]} 35... Rf1
{[%clk 0:00:55.2]} 36. Re2 {[%clk 0:01:07.3]} 36... Nc3 {[%clk 0:00:55.5]} 37.
Rd2 {[%clk 0:01:02.5]} 37... Ne4 {[%clk 0:00:55.8]} 38. Rc2 {[%clk 0:01:01.5]}
38... Rxf2 {[%clk 0:00:53.6]} 39. Nd2+ {[%clk 0:01:01.1]} 39... Kd5 {[%clk
0:00:52.4]} 40. Nc4 {[%clk 0:00:53.7]} 40... Rxc2+ {[%clk 0:00:52.4]} 41. Kxc2
{[%clk 0:00:54.4]} 41... Kd4 {[%clk 0:00:37.2]} 42. Na5 {[%clk 0:00:43.6]} 42...
Nf2 {[%clk 0:00:31.9]} 43. Nc6+ {[%clk 0:00:39.7]} 43... Kc5 {[%clk 0:00:32.5]}
44. Ne5 {[%clk 0:00:39.6]} 44... Kd5 {[%clk 0:00:30.4]} 45. Nd3 {[%clk
0:00:36.3]} 45... Nxd3 {[%clk 0:00:30]} 46. Kxd3 {[%clk 0:00:37.2]} 46... h5
{[%clk 0:00:30.3]} 0-1

[Event "Late-Titled-Tuesday-Blitz-October-10-2023"]
[Site "Chess.com"]
[Date "2023.10.10"]
[Round "2"]
[White "Rozhkov_V"]
[Black "DonJuanEGenaro"]
[Result "1-0"]
[WhiteElo "2415"]
[BlackElo "1914"]
[TimeControl "180+1"]
[EndTime "14:16:59 PDT"]
[Termination "Rozhkov_V won by checkmate"]

1. e4 {[%clk 0:02:58.7]} 1... c5 {[%clk 0:02:59.8]} 2. Nf3 {[%clk 0:02:55.9]}
2... Nc6 {[%clk 0:03:00.2]} 3. d3 {[%clk 0:02:43.9]} 3... e6 {[%clk 0:02:56.9]}
4. g3 {[%clk 0:02:42.7]} 4... d5 {[%clk 0:02:56.7]} 5. Nbd2 {[%clk 0:02:42.9]}
5... Nf6 {[%clk 0:02:54.8]} 6. Bg2 {[%clk 0:02:42.3]} 6... Be7 {[%clk 0:02:52]}
7. O-O {[%clk 0:02:41.2]} 7... O-O {[%clk 0:02:50.2]} 8. Re1 {[%clk 0:02:38.1]}
8... b5 {[%clk 0:02:39.9]} 9. h4 {[%clk 0:02:27.7]} 9... d4 {[%clk 0:02:33.9]}
10. Nh2 {[%clk 0:02:20.2]} 10... e5 {[%clk 0:02:32.4]} 11. f4 {[%clk 0:02:14.7]}
11... exf4 {[%clk 0:02:31.1]} 12. gxf4 {[%clk 0:02:15.6]} 12... Ng4 {[%clk
0:02:29.2]} 13. Nxg4 {[%clk 0:02:14.2]} 13... Bxh4 {[%clk 0:02:25.8]} 14. Rf1
{[%clk 0:02:07.5]} 14... Bg3 {[%clk 0:02:15.2]} 15. f5 {[%clk 0:02:04.3]} 15...
Qe7 {[%clk 0:02:11.9]} 16. f6 {[%clk 0:01:38]} 16... Qd6 {[%clk 0:01:41]} 17.
fxg7 {[%clk 0:01:36.3]} 17... Rd8 {[%clk 0:01:30.3]} 18. Nf6+ {[%clk 0:01:26.1]}
18... Kxg7 {[%clk 0:01:26.5]} 19. Qh5 {[%clk 0:01:23.8]} 19... Qe5 {[%clk
0:01:03.2]} 20. Qxh7+ {[%clk 0:01:19.9]} 20... Kf8 {[%clk 0:01:02.6]} 21. Ng4
{[%clk 0:00:16.2]} 21... Qg7 {[%clk 0:00:59]} 22. Qxg7+ {[%clk 0:00:13.7]} 22...
Kxg7 {[%clk 0:00:58.7]} 23. Nf6 {[%clk 0:00:14.3]} 23... Be5 {[%clk 0:00:53.5]}
24. Nh5+ {[%clk 0:00:14.2]} 24... Kg6 {[%clk 0:00:52.4]} 25. Nf4+ {[%clk
0:00:14.8]} 25... Bxf4 {[%clk 0:00:51.7]} 26. Rxf4 {[%clk 0:00:15.7]} 26... Ne5
{[%clk 0:00:51.2]} 27. Nf3 {[%clk 0:00:15.8]} 27... f6 {[%clk 0:00:47.5]} 28.
Nh4+ {[%clk 0:00:14.3]} 28... Kf7 {[%clk 0:00:46.2]} 29. Bd2 {[%clk 0:00:14.2]}
29... Rg8 {[%clk 0:00:45.1]} 30. Raf1 {[%clk 0:00:14.2]} 30... Ng4 {[%clk
0:00:43.8]} 31. e5 {[%clk 0:00:13.8]} 31... Ne3 {[%clk 0:00:39.6]} 32. Bxe3
{[%clk 0:00:13.5]} 32... dxe3 {[%clk 0:00:38.8]} 33. Rxf6+ {[%clk 0:00:14.1]}
33... Ke7 {[%clk 0:00:38.5]} 34. Rf7+ {[%clk 0:00:14.1]} 34... Ke6 {[%clk
0:00:38.3]} 35. R1f6+ {[%clk 0:00:13.9]} 35... Kxe5 {[%clk 0:00:38.3]} 36. Ng6+
{[%clk 0:00:14.3]} 36... Kd4 {[%clk 0:00:31.4]} 37. Rd6# {[%clk 0:00:13.3]} 1-0

[Event "Late-Titled-Tuesday-Blitz-October-10-2023"]
[Site "Chess.com"]
[Date "2023.10.10"]
[Round "2"]
[White "FMJoseHerrera"]
[Black "tgpgoat"]
[Result "1/2-1/2"]
[WhiteElo "2751"]
[BlackElo "2536"]
[TimeControl "180+1"]
[EndTime "14:17:00 PDT"]
[Termination "Game drawn by repetition"]

1. Nf3 {[%clk 0:03:00.9]} 1... Nf6 {[%clk 0:02:57.9]} 2. g3 {[%clk 0:03:01.4]}
2... e6 {[%clk 0:02:57.7]} 3. Bg2 {[%clk 0:03:02.3]} 3... d5 {[%clk 0:02:57.5]}
4. O-O {[%clk 0:03:02.8]} 4... Be7 {[%clk 0:02:58.1]} 5. c4 {[%clk 0:03:03.2]}
5... O-O {[%clk 0:02:59]} 6. cxd5 {[%clk 0:03:03]} 6... exd5 {[%clk 0:02:59.9]}
7. b3 {[%clk 0:03:03.5]} 7... c5 {[%clk 0:02:59.2]} 8. Bb2 {[%clk 0:03:03]} 8...
Nc6 {[%clk 0:02:59.7]} 9. d4 {[%clk 0:03:02.6]} 9... Bf5 {[%clk 0:02:58.1]} 10.
dxc5 {[%clk 0:03:02.1]} 10... Bxc5 {[%clk 0:02:57]} 11. Nc3 {[%clk 0:03:00.6]}
11... Rc8 {[%clk 0:02:45.5]} 12. Nb5 {[%clk 0:02:58]} 12... Be4 {[%clk
0:02:33.6]} 13. Rc1 {[%clk 0:02:57.8]} 13... Bb6 {[%clk 0:02:31.1]} 14. Ba3
{[%clk 0:02:57.5]} 14... a6 {[%clk 0:02:07.4]} 15. Nd6 {[%clk 0:02:55.8]} 15...
Rc7 {[%clk 0:02:02.9]} 16. Nxb7 {[%clk 0:02:19.9]} 16... Rxb7 {[%clk 0:02:01]}
17. Bxf8 {[%clk 0:02:18.2]} 17... Qxf8 {[%clk 0:02:00.1]} 18. Rxc6 {[%clk
0:02:14.4]} 18... h6 {[%clk 0:01:53.4]} 19. e3 {[%clk 0:02:13.9]} 19... Qa3
{[%clk 0:01:50.2]} 20. Qe2 {[%clk 0:02:04.2]} 20... Kh7 {[%clk 0:01:33.8]} 21.
Rfc1 {[%clk 0:02:03.1]} 21... d4 {[%clk 0:01:31.9]} 22. Nxd4 {[%clk 0:02:01.8]}
22... Bxc6 {[%clk 0:01:20.1]} 23. Qc2+ {[%clk 0:01:55.9]} 23... g6 {[%clk
0:01:17.8]} 24. Nxc6 {[%clk 0:01:50]} 24... Rc7 {[%clk 0:01:11.7]} 25. Rd1
{[%clk 0:01:50]} 25... Ng4 {[%clk 0:00:59.9]} 26. Qe4 {[%clk 0:01:46]} 26... h5
{[%clk 0:00:55.5]} 27. Qf4 {[%clk 0:01:41.1]} 27... Qxa2 {[%clk 0:00:44.8]} 28.
Bd5 {[%clk 0:01:33]} 28... Qe2 {[%clk 0:00:40.3]} 29. Rf1 {[%clk 0:01:32.1]}
29... Nxe3 {[%clk 0:00:32.9]} 30. Bc4 {[%clk 0:00:34.1]} 30... Nxc4 {[%clk
0:00:19.8]} 31. bxc4 {[%clk 0:00:35]} 31... Rxc6 {[%clk 0:00:17.8]} 32. Qxf7+
{[%clk 0:00:35.3]} 32... Kh6 {[%clk 0:00:18.4]} 33. Qf8+ {[%clk 0:00:35.8]}
33... Kh7 {[%clk 0:00:18.4]} 34. Qf7+ {[%clk 0:00:36]} 34... Kh6 {[%clk
0:00:17.1]} 35. Qf8+ {[%clk 0:00:33.4]} 35... Kh7 {[%clk 0:00:17.6]} 36. Qf7+
{[%clk 0:00:18.9]} 1/2-1/2

[Event "Late-Titled-Tuesday-Blitz-October-10-2023"]
[Site "Chess.com"]
[Date "2023.10.10"]
[Round "2"]
[White "nicholas_ilic"]
[Black "Aygehovit1992"]
[Result "0-1"]
[WhiteElo "2303"]
[BlackElo "2696"]
[TimeControl "180+1"]
[EndTime "14:17:02 PDT"]
[Termination "Aygehovit1992 won on time"]

1. e4 {[%clk 0:03:00.1]} 1... c5 {[%clk 0:02:59.8]} 2. b3 {[%clk 0:02:59.8]}
2... Nf6 {[%clk 0:02:57.5]} 3. Nc3 {[%clk 0:02:59.3]} 3... Nc6 {[%clk
0:02:56.2]} 4. Bb2 {[%clk 0:02:58.9]} 4... e6 {[%clk 0:02:52.4]} 5. Bb5 {[%clk
0:02:57.6]} 5... Nd4 {[%clk 0:02:52.2]} 6. Nf3 {[%clk 0:02:45.1]} 6... a6 {[%clk
0:02:50.7]} 7. Bd3 {[%clk 0:02:42.7]} 7... Nc6 {[%clk 0:02:45.8]} 8. e5 {[%clk
0:02:35.6]} 8... Ng4 {[%clk 0:02:45.5]} 9. Qe2 {[%clk 0:02:34.2]} 9... Qc7
{[%clk 0:02:45.2]} 10. Nd1 {[%clk 0:02:17.3]} 10... b5 {[%clk 0:02:40.9]} 11. h3
{[%clk 0:02:16.5]} 11... Nh6 {[%clk 0:02:39.8]} 12. Ne3 {[%clk 0:02:14.4]} 12...
Bb7 {[%clk 0:02:39.6]} 13. a4 {[%clk 0:02:09.6]} 13... Nb4 {[%clk 0:02:27.1]}
14. axb5 {[%clk 0:02:01.6]} 14... Nxd3+ {[%clk 0:02:21.2]} 15. Qxd3 {[%clk
0:01:58.5]} 15... axb5 {[%clk 0:02:21.4]} 16. Rxa8+ {[%clk 0:01:58.2]} 16...
Bxa8 {[%clk 0:02:22.3]} 17. Qxb5 {[%clk 0:01:58.1]} 17... Bxf3 {[%clk
0:02:22.4]} 18. gxf3 {[%clk 0:01:57.8]} 18... Be7 {[%clk 0:02:22.7]} 19. f4
{[%clk 0:01:53.6]} 19... O-O {[%clk 0:02:20.7]} 20. O-O {[%clk 0:01:48.7]} 20...
f5 {[%clk 0:02:02.9]} 21. d4 {[%clk 0:01:41.5]} 21... cxd4 {[%clk 0:01:58.3]}
22. Bxd4 {[%clk 0:01:40.6]} 22... Rb8 {[%clk 0:01:40.2]} 23. Qa6 {[%clk
0:01:38.4]} 23... Nf7 {[%clk 0:01:30.8]} 24. Ra1 {[%clk 0:01:37.6]} 24... g5
{[%clk 0:01:29.5]} 25. Qa7 {[%clk 0:01:28.8]} 25... Rb7 {[%clk 0:01:29]} 26.
Qa8+ {[%clk 0:01:28]} 26... Rb8 {[%clk 0:01:16.5]} 27. Qg2 {[%clk 0:01:14.3]}
27... h6 {[%clk 0:01:16.2]} 28. Ra7 {[%clk 0:01:12.3]} 28... Qc8 {[%clk
0:01:16.6]} 29. fxg5 {[%clk 0:01:03.8]} 29... hxg5 {[%clk 0:01:17.5]} 30. h4
{[%clk 0:00:58]} 30... g4 {[%clk 0:01:12.4]} 31. f3 {[%clk 0:00:57.1]} 31... Bc5
{[%clk 0:01:11.4]} 32. Ra4 {[%clk 0:00:43.5]} 32... Bxd4 {[%clk 0:01:11.5]} 33.
Rxd4 {[%clk 0:00:43.5]} 33... Qc5 {[%clk 0:01:01.3]} 34. Qd2 {[%clk 0:00:41.1]}
34... Nxe5 {[%clk 0:01:00.6]} 35. Kf2 {[%clk 0:00:04.7]} 35... Nxf3 {[%clk
0:00:58.1]} 36. Rc4 {[%clk 0:00:04.9]} 36... Nxd2 {[%clk 0:00:56.5]} 37. Rxc5
{[%clk 0:00:01.7]} 37... Ne4+ {[%clk 0:00:56.6]} 38. Ke2 {[%clk 0:00:02.6]}
38... Nxc5 {[%clk 0:00:57.5]} 0-1

[Event "Late-Titled-Tuesday-Blitz-October-10-2023"]
[Site "Chess.com"]
[Date "2023.10.10"]
[Round "2"]
[White "Fandorine"]
[Black "BigAl"]
[Result "1-0"]
[WhiteElo "2931"]
[BlackElo "2590"]
[TimeControl "180+1"]
[EndTime "14:17:04 PDT"]
[Termination "Fandorine won on time"]

1. g3 {[%clk 0:03:00.9]} 1... g6 {[%clk 0:02:59.4]} 2. Bg2 {[%clk 0:03:00.5]}
2... Bg7 {[%clk 0:03:00.3]} 3. e4 {[%clk 0:03:01.2]} 3... d5 {[%clk 0:03:01.1]}
4. exd5 {[%clk 0:03:01.2]} 4... Nf6 {[%clk 0:02:59.2]} 5. Nc3 {[%clk 0:03:01.4]}
5... c6 {[%clk 0:02:57.4]} 6. dxc6 {[%clk 0:03:01]} 6... Nxc6 {[%clk 0:02:58.3]}
7. Nge2 {[%clk 0:03:01.2]} 7... h5 {[%clk 0:02:51.9]} 8. h3 {[%clk 0:02:57]}
8... Bf5 {[%clk 0:02:50]} 9. d3 {[%clk 0:02:56.9]} 9... Qd7 {[%clk 0:02:47.1]}
10. Be3 {[%clk 0:02:56.6]} 10... e5 {[%clk 0:02:44.8]} 11. Ne4 {[%clk
0:02:52.3]} 11... O-O {[%clk 0:02:26.1]} 12. Nxf6+ {[%clk 0:02:39.3]} 12... Bxf6
{[%clk 0:02:26.2]} 13. Nc3 {[%clk 0:02:40.2]} 13... b6 {[%clk 0:02:12.2]} 14.
Qd2 {[%clk 0:02:21.5]} 14... Rac8 {[%clk 0:02:05.1]} 15. Ne4 {[%clk 0:02:03.6]}
15... Bg7 {[%clk 0:02:04.8]} 16. c3 {[%clk 0:02:03.1]} 16... Rcd8 {[%clk
0:01:48.6]} 17. O-O-O {[%clk 0:01:51.4]} 17... Be6 {[%clk 0:01:41.8]} 18. Kb1
{[%clk 0:01:50.4]} 18... f6 {[%clk 0:01:23.6]} 19. Bh6 {[%clk 0:01:44.1]} 19...
Rc8 {[%clk 0:01:17.7]} 20. Bxg7 {[%clk 0:01:41.2]} 20... Kxg7 {[%clk 0:01:18.6]}
21. g4 {[%clk 0:01:41.3]} 21... h4 {[%clk 0:01:14.1]} 22. f4 {[%clk 0:01:39.3]}
22... Qf7 {[%clk 0:01:08.6]} 23. c4 {[%clk 0:01:26.4]} 23... Rfd8 {[%clk
0:00:57.7]} 24. fxe5 {[%clk 0:01:13.4]} 24... Nxe5 {[%clk 0:00:57.7]} 25. Qc3
{[%clk 0:01:14]} 25... b5 {[%clk 0:00:10.2]} 26. g5 {[%clk 0:01:07.8]} 26... Nd7
{[%clk 0:00:01.7]} 27. gxf6+ {[%clk 0:01:04.7]} 27... Kg8 {[%clk 0:00:01.9]} 28.
Nd6 {[%clk 0:01:03.6]} 28... Qxf6 {[%clk 0:00:01.8]} 29. Qxf6 {[%clk 0:01:03.5]}
29... Nxf6 {[%clk 0:00:02.7]} 30. Nxc8 {[%clk 0:01:04.4]} 30... Rxc8 {[%clk
0:00:03.6]} 31. Rhe1 {[%clk 0:01:00.1]} 31... Bf5 {[%clk 0:00:04]} 32. cxb5
{[%clk 0:00:58.8]} 32... Rb8 {[%clk 0:00:04.2]} 33. a4 {[%clk 0:00:59.1]} 33...
Kf7 {[%clk 0:00:04.2]} 34. Rc1 {[%clk 0:00:55.6]} 34... g5 {[%clk 0:00:02.4]}
35. Rc7+ {[%clk 0:00:53.4]} 35... Kg6 {[%clk 0:00:03.3]} 36. Rxa7 {[%clk
0:00:53.4]} 36... Bxd3+ {[%clk 0:00:04]} 37. Ka1 {[%clk 0:00:53.9]} 37... Rc8
{[%clk 0:00:03.5]} 38. b6 {[%clk 0:00:51.4]} 1-0

[Event "Late-Titled-Tuesday-Blitz-October-10-2023"]
[Site "Chess.com"]
[Date "2023.10.10"]
[Round "2"]
[White "Dedic8"]
[Black "BulteniBo"]
[Result "1-0"]
[WhiteElo "2856"]
[BlackElo "2551"]
[TimeControl "180+1"]
[EndTime "14:17:07 PDT"]
[Termination "Dedic8 won by resignation"]

1. d4 {[%clk 0:03:00.9]} 1... g6 {[%clk 0:02:58.9]} 2. e4 {[%clk 0:03:00.7]}
2... Bg7 {[%clk 0:02:59.1]} 3. Nc3 {[%clk 0:03:00.6]} 3... d6 {[%clk 0:02:59.6]}
4. f4 {[%clk 0:03:00.3]} 4... Nf6 {[%clk 0:02:59.7]} 5. Nf3 {[%clk 0:03:00.7]}
5... O-O {[%clk 0:02:59.8]} 6. Bd3 {[%clk 0:03:00.4]} 6... c5 {[%clk 0:02:59.8]}
7. d5 {[%clk 0:03:01.1]} 7... e6 {[%clk 0:02:59.5]} 8. O-O {[%clk 0:02:50.9]}
8... exd5 {[%clk 0:02:58.6]} 9. exd5 {[%clk 0:02:51.8]} 9... a6 {[%clk
0:02:43.2]} 10. a4 {[%clk 0:02:51.3]} 10... Re8 {[%clk 0:02:43.7]} 11. h3 {[%clk
0:02:50]} 11... Qa5 {[%clk 0:02:31.4]} 12. Bd2 {[%clk 0:02:47.5]} 12... c4
{[%clk 0:02:19.2]} 13. Be2 {[%clk 0:02:47.8]} 13... Qc5+ {[%clk 0:02:15.1]} 14.
Kh2 {[%clk 0:02:48]} 14... Bf5 {[%clk 0:02:02.6]} 15. a5 {[%clk 0:02:48.1]}
15... Nbd7 {[%clk 0:01:59.3]} 16. Be1 {[%clk 0:02:40.8]} 16... Ne4 {[%clk
0:01:53.2]} 17. Na4 {[%clk 0:02:33.6]} 17... Qe3 {[%clk 0:01:40]} 18. Nh4 {[%clk
0:02:20.1]} 18... Ndc5 {[%clk 0:00:38]} 19. Nb6 {[%clk 0:01:55.5]} 19... Rad8
{[%clk 0:00:33.1]} 20. Nxc4 {[%clk 0:01:53.8]} 20... Qd4 {[%clk 0:00:31.1]} 21.
Qxd4 {[%clk 0:01:50.8]} 21... Bxd4 {[%clk 0:00:32]} 22. Bf3 {[%clk 0:01:38.4]}
22... Nf6 {[%clk 0:00:26.8]} 23. Rd1 {[%clk 0:01:27]} 23... Be3 {[%clk
0:00:23.8]} 24. Nxe3 {[%clk 0:01:22.1]} 24... Rxe3 {[%clk 0:00:24.7]} 25. Nxf5
{[%clk 0:01:19.5]} 25... gxf5 {[%clk 0:00:24.3]} 26. Bh4 {[%clk 0:01:20.2]}
26... Kg7 {[%clk 0:00:22.3]} 27. Rfe1 {[%clk 0:01:11.9]} 27... Rde8 {[%clk
0:00:21.7]} 28. Rxe3 {[%clk 0:01:12.3]} 28... Rxe3 {[%clk 0:00:22.6]} 29. Bf2
{[%clk 0:01:12.7]} 29... Re8 {[%clk 0:00:19.5]} 30. Bxc5 {[%clk 0:01:12.8]}
30... dxc5 {[%clk 0:00:20.4]} 31. d6 {[%clk 0:01:13.5]} 31... Ne4 {[%clk
0:00:19.6]} 32. g4 {[%clk 0:01:11.2]} 32... Rd8 {[%clk 0:00:19.4]} 33. d7 {[%clk
0:01:03.5]} 33... Kf6 {[%clk 0:00:17.4]} 34. gxf5 {[%clk 0:01:02.9]} 34... Kxf5
{[%clk 0:00:17.7]} 35. Rd5+ {[%clk 0:01:03.1]} 35... Kxf4 {[%clk 0:00:17.7]} 36.
Bg4 {[%clk 0:00:56.8]} 36... c4 {[%clk 0:00:13.6]} 37. Rf5+ {[%clk 0:00:56.4]}
37... Ke3 {[%clk 0:00:13.6]} 38. Rxf7 {[%clk 0:00:56.9]} 38... Nc5 {[%clk
0:00:12.6]} 39. Rxh7 {[%clk 0:00:53.3]} 39... Kd2 {[%clk 0:00:12.9]} 40. Bf5
{[%clk 0:00:52.2]} 40... Kc1 {[%clk 0:00:09]} 41. Rh4 {[%clk 0:00:52.3]} 41...
c3 {[%clk 0:00:08.5]} 42. bxc3 {[%clk 0:00:51.5]} 42... Nxd7 {[%clk 0:00:07.4]}
43. Rd4 {[%clk 0:00:51.2]} 43... Rf8 {[%clk 0:00:08.1]} 44. Bxd7 {[%clk
0:00:51.4]} 44... Rf2+ {[%clk 0:00:08.8]} 45. Kg3 {[%clk 0:00:51.6]} 45... Rxc2
{[%clk 0:00:09.7]} 46. Rc4 {[%clk 0:00:49.2]} 1-0